[Event "ChessKid Cup Div-III 2023"]
[Site "Online"]
[Date "2023.05.22"]
[Round "2.3"]
[White "Chigaev, Maksim"]
[Black "Sevian, Samuel"]
[Result "1/2-1/2"]
[ECO "E04"]
[WhiteElo "2628"]
[BlackElo "2684"]
[Annotator "TA"]
[PlyCount "110"]
[EventDate "2023.05.21"]
[EventType "k.o."]
[EventCountry "NET"]
[SourceTitle "playchess.com"]
[Source "ChessBase"]
[SourceQuality "1"]
[TimeControl "900+3"]

{[%evp 23,110,12,13,8,33,43,60,62,38,56,41,47,56,69,63,36,31,31,35,25,60,22,24,8,9,9,12,12,11,8,6,0,14,15,14,14,22,7,7,7,7,7,7,7,14,9,22,9,8,0,2,2,7,0,1,0,8,0,4,0,0,0,2,2,3,0,8,8,8,8,8,8,15,0,6,6,17,17,17,10,10,15,16,6,6,0,0,0,0]} 1. d4 {[%emt 0:00:09]} Nf6 {[%emt 0:04:37]} 2. c4 {[%emt 0:00:07]} e6 {[%emt 0:00:04]} 3. Nf3 {[%emt 0:00:07]} d5 {[%emt 0:00:04]} 4. g3 {[%emt 0:00:04]} dxc4 {[%emt 0:00:07]} 5. Bg2 {[%emt 0:00:03]} c5 {[%emt 0:00:04]} 6. O-O {[%emt 0:00:05]} Nc6 {[%emt 0:00:03]} 7. dxc5 {[%emt 0:00:04]} Qxd1 {[%emt 0:00:03]} 8. Rxd1 {[%emt 0:00:03]} Bxc5 {[%emt 0:00:03]} 9. Nbd2 {[%emt 0:00:04]} c3 {[%emt 0:00:04]} 10. bxc3 {[%emt 0:00:03]} O-O {[%emt 0:00:04]} 11. Nb3 {[%emt 0:00:03]} Be7 {[%emt 0:00:04]} 12. Nfd4 {[%emt 0:00:05]} Bd7 {[%emt 0:00:04]} 13. Nb5 {[%emt 0:00:03] E04: Open Catalan: 5 Nf3.} Rfd8 {[%emt 0:00:06]} 14. Be3 {[%emt 0:00:06]} a6 {[%emt 0:00:27]} 15. Nd6 {[%emt 0:00:24] White is slightly better.} Bxd6 {[%emt 0:00:03]} 16. Rxd6 {[%emt 0:00:04]} Be8 $1 {[%emt 0:00:03]} 17. Rxd8 {[%emt 0:01:24]} Nxd8 {[%emt 0:00:04] Black is weak on the dark squares} 18. Na5 {[%emt 0:00:04]} Nd5 {[%emt 0:00:19]} 19. Bd2 {[%emt 0:00:49] A strong pair of Bishops.} b5 $1 {[%emt 0:00:07]} 20. c4 {[%emt 0:00:09]} bxc4 {[%emt 0:00:03]} 21. Nxc4 {[%emt 0:00:04] [#]} Bb5 $146 {[%emt 0:00:04]} ({Predecessor:} 21... Rc8 22. Nd6 Rc2 23. Bg5 f6 24. Rc1 Rxc1+ 25. Bxc1 Bc6 26. Bd2 Nb7 27. Nxb7 Bxb7 28. f4 {½-½ Liu,Q (2542)-Lu,S (2616) CHN-chT Div-A Rapid 2022 (10.2)}) 22. Bxd5 {[%emt 0:01:15]} exd5 {[%emt 0:00:05]} 23. Nb6 {[%emt 0:00:04][%csl LRa8,LRd5]} Rb8 {[%emt 0:00:10] The position is equal.} 24. Nxd5 {[%emt 0:00:29]} Bxe2 {[%emt 0:00:06]} 25. Re1 {[%emt 0:02:35]} Bb5 {[%emt 0:00:04]} 26. Nc7 {[%emt 0:01:20] [#] aiming for Nxb5.} (26. Bf4 $5 Rb7 $8 27. Nc7 $11) 26... Nc6 {[%emt 0:00:05]} 27. Bf4 {[%emt 0:00:31] And now Nxb5 would win.} Rc8 {[%emt 0:00:14]} 28. Nxb5 {[%emt 0:00:10]} axb5 $11 {[%emt 0:00:05][%mdl 4096] Endgame KRB-KRN} 29. Rc1 {[%emt 0:00:14]} f6 {[%emt 0:00:19]} 30. g4 {[%emt 0:00:39]} Kf7 {[%emt 0:00:05]} 31. Kg2 {[%emt 0:00:33]} Ke6 {[%emt 0:00:04]} 32. Rc5 {[%emt 0:00:16]} Na7 {[%emt 0:00:04]} 33. Rh5 {[%emt 0:00:08]} h6 {[%emt 0:00:09]} 34. Be3 {[%emt 0:00:05]} Ra8 {[%emt 0:00:06]} 35. Rc5 {[%emt 0:00:23]} Kd6 {[%emt 0:00:04]} 36. Kf3 {[%emt 0:00:10]} Nc6 {[%emt 0:00:07]} 37. Rxb5 {[%emt 0:00:08]} Rxa2 {[%emt 0:00:05]} 38. Rb7 {[%emt 0:00:13]} Ne5+ {[%emt 0:00:03]} 39. Kg3 {[%emt 0:00:08]} Nd7 {[%emt 0:00:04]} 40. h4 {[%emt 0:00:08]} Ke6 {[%emt 0:00:08]} 41. Rc7 {[%emt 0:00:09]} Ra3 {[%emt 0:00:08]} 42. h5 {[%emt 0:00:07]} Rb3 {[%emt 0:00:05]} 43. Kg2 {[%emt 0:00:09]} Rd3 {[%emt 0:00:04]} 44. Ra7 {[%emt 0:00:19]} Rb3 {[%emt 0:00:20]} 45. Bc1 {[%emt 0:00:11]} Rd3 {[%emt 0:00:09]} 46. Bb2 {[%emt 0:00:16]} Kf7 {[%emt 0:00:07]} 47. Ba1 {[%emt 0:00:25]} Kg8 {[%emt 0:00:04]} 48. f4 {[%emt 0:00:04]} Rd5 {[%emt 0:00:19]} 49. Kf3 {[%emt 0:00:05]} Nf8 {[%emt 0:00:44]} 50. Ke4 {[%emt 0:00:08]} Rb5 {[%emt 0:00:04]} 51. Bd4 {[%emt 0:00:23]} Ne6 {[%emt 0:00:06] [#] ...Rb4 would be deadly.} 52. Be3 {[%emt 0:00:04]} Kh7 {[%emt 0:00:12]} 53. Re7 {[%emt 0:00:07]} Rb4+ {[%emt 0:00:04]} 54. Kf5 {[%emt 0:00:18]} Nd4+ {[%emt 0:00:04]} 55. Bxd4 {[%emt 0:00:04]} Rxd4 {[%emt 0:00:03] Weighted Error Value: White=0.05 (flawless) /Black=0.04 (flawless)} 1/2-1/2

[Event "ChessKid Cup Div-III 2023"]
[Site "Online"]
[Date "2023.05.23"]
[Round "3.1"]
[White "Vallejo Pons, Francisco"]
[Black "Lazavik, Denis"]
[Result "1/2-1/2"]
[ECO "E05"]
[WhiteElo "2712"]
[BlackElo "2544"]
[Annotator "TA"]
[PlyCount "89"]
[EventDate "2023.05.21"]
[EventType "k.o."]
[EventCountry "NET"]
[SourceTitle "playchess.com"]
[Source "ChessBase"]
[SourceQuality "1"]
[TimeControl "900+3"]

{[%evp 19,89,26,22,11,13,10,12,12,9,12,15,21,14,20,10,20,18,4,15,22,15,20,37,15,76,43,39,29,32,31,29,30,29,5,11,-3,-8,-27,-27,-33,-26,-40,-35,-25,-21,-21,-22,-23,-24,-29,-18,-75,-76,-75,-37,-48,-35,-33,0,-21,-37,-29,0,0,0,0,0,0,0,-2,0,0]} 1. Nf3 {[%emt 0:00:04]} d5 {[%emt 0:00:08]} 2. g3 {[%emt 0:00:02]} Nf6 {[%emt 0:00:06]} 3. Bg2 {[%emt 0:00:01]} e6 {[%emt 0:00:01]} 4. O-O {[%emt 0:00:02]} Be7 {[%emt 0:00:02]} 5. c4 {[%emt 0:01:01]} O-O {[%emt 0:00:03]} 6. d4 {[%emt 0:00:18]} dxc4 {[%emt 0:00:02]} 7. Ne5 {[%emt 0:00:02]} Nc6 {[%emt 0:00:03]} 8. Bxc6 {[%emt 0:00:01]} bxc6 {[%emt 0:00:02]} 9. Nxc6 {[%emt 0:00:00]} Qe8 {[%emt 0:00:01]} 10. Nxe7+ {[%emt 0:00:01]} Qxe7 {[%emt 0:00:01]} 11. b3 {[%emt 0:00:00] E05: Open Catalan: 5 Nf3 Be7.} cxb3 {[%emt 0:00:24]} 12. Qxb3 {[%emt 0:00:50] [#] Ba3 would be deadly.} Rd8 {[%emt 0:00:16]} 13. Ba3 {[%emt 0:00:11]} Qe8 {[%emt 0:00:20]} 14. Rd1 {[%emt 0:00:20] Black is weak on the dark squares} Ba6 {[%emt 0:00:20]} 15. Nc3 {[%emt 0:00:33]} Nd5 {[%emt 0:01:09] [#]} 16. Rd2 $146 {[%emt 0:00:46]} ({Predecessor:} 16. e4 Rab8 17. Qc2 Nb4 18. Bxb4 Rxb4 19. d5 e5 20. Qc1 Rc4 21. Qa3 Rd6 22. Rab1 {½-½ Duda,J (2750)-Deac,B (2692) Olympiad-44 Chennai 2022 (4.1)}) 16... Rab8 {[%emt 0:01:42]} 17. Qc2 {[%emt 0:00:03]} Nb6 {[%emt 0:03:17]} 18. Bc5 {[%emt 0:01:24]} Qc6 {[%emt 0:00:17]} 19. Qe4 {[%emt 0:00:44]} Nd5 {[%emt 0:00:30]} (19... Qxe4 {simplifies} 20. Nxe4 h6 21. Rc1 f5) 20. Rc1 {[%emt 0:00:56]} Bb7 {[%emt 0:01:14] Strongly threatening ...Nxc3.} 21. Nxd5 {[%emt 0:01:30]} Rxd5 {[%emt 0:00:07]} (21... exd5 $11 22. Qc2 Qd7) 22. Rdc2 {[%emt 0:01:51] White is much more active.} Rxc5 {[%emt 0:00:38][%mdl 64] [#] Discovered Attack} 23. Qxc6 {[%emt 0:00:12]} Rxc6 {[%emt 0:00:01]} 24. Rxc6 {[%emt 0:00:03]} Bxc6 {[%emt 0:00:01]} 25. Rxc6 $14 {[%emt 0:00:00][%mdl 4096] Endgame KR-KR} Rb7 {[%emt 0:00:01]} 26. a4 {[%emt 0:00:41]} Kf8 {[%emt 0:00:09]} 27. a5 {[%emt 0:00:12]} Ke7 {[%emt 0:00:31]} 28. e3 {[%emt 0:03:17]} Kd7 {[%emt 0:00:08]} 29. Rc5 {[%emt 0:00:13]} c6 {[%emt 0:01:02]} 30. Rc2 {[%emt 0:00:56]} Rb5 {[%emt 0:00:10]} 31. Ra2 $1 {[%emt 0:00:01]} c5 {[%emt 0:00:41]} 32. dxc5 {[%emt 0:00:08]} Rxc5 {[%emt 0:00:01]} 33. Kf1 {[%emt 0:00:05]} Kc6 {[%emt 0:00:07]} 34. Ke2 {[%emt 0:00:04]} Kb5 {[%emt 0:00:07]} 35. Kd3 {[%emt 0:00:10]} (35. Rd2 $11) 35... Ka6 $17 {[%emt 0:00:07]} 36. Rb2 {[%emt 0:00:06]} Rxa5 {[%emt 0:00:09]} ({Much weaker is} 36... Kxa5 37. Rb7 Rf5 38. Rxa7+ Kb6 39. Ra2 $11) (36... Rb5 $5 {[%cal Rb5b2]} 37. Rc2 Rxa5 $15) 37. Kc4 {[%emt 0:00:01]} h5 {[%emt 0:00:50]} 38. f4 {[%emt 0:00:02]} Ra3 {[%emt 0:00:25]} 39. e4 {[%emt 0:00:03]} Ra4+ {[%emt 0:00:00]} 40. Kd3 {[%emt 0:00:02]} f6 {[%emt 0:00:54]} 41. Rb8 {[%emt 0:00:03] The position is equal.} Ra3+ {[%emt 0:00:02]} 42. Kd4 {[%emt 0:00:02]} Ra4+ {[%emt 0:00:00]} 43. Kd3 {[%emt 0:00:02]} Ra3+ {[%emt 0:00:30]} 44. Kd4 {[%emt 0:00:01]} Ra4+ {[%emt 0:00:01]} 45. Kd3 {[%emt 0:00:02] Weighted Error Value: White=0.09 (flawless) /Black=0.08 (flawless)} 1/2-1/2

[Event "ChessKid Cup Div-III 2023"]
[Site "Online"]
[Date "2023.05.23"]
[Round "3.1"]
[White "Harikrishna, Pentala"]
[Black "Lysyj, Igor"]
[Result "1/2-1/2"]
[ECO "E06"]
[WhiteElo "2704"]
[BlackElo "2606"]
[Annotator "TA"]
[PlyCount "104"]
[EventDate "2023.05.21"]
[EventType "k.o."]
[EventCountry "NET"]
[SourceTitle "playchess.com"]
[Source "ChessBase"]
[SourceQuality "1"]
[TimeControl "900+3"]

{[%evp 18,104,13,14,22,22,23,18,10,-2,4,0,13,0,3,3,0,7,7,7,7,5,4,0,0,-6,6,6,7,0,0,7,7,7,19,6,46,19,19,19,27,19,20,20,20,20,20,5,8,0,0,0,0,0,0,0,9,9,9,9,9,9,9,9,9,9,9,9,9,0,9,0,9,9,9,9,9,9,9,9,9,2,2,2,9,9,14,20,21]} 1. c4 {[%emt 0:00:03]} e6 {[%emt 0:00:05]} 2. Nf3 {[%emt 0:00:02]} Nf6 {[%emt 0:00:02]} 3. g3 {[%emt 0:00:04]} d5 {[%emt 0:00:02]} 4. Bg2 {[%emt 0:00:05]} Be7 {[%emt 0:00:01]} 5. d4 {[%emt 0:00:01]} O-O {[%emt 0:00:02]} 6. Nc3 {[%emt 0:00:02]} dxc4 {[%emt 0:00:06]} 7. Ne5 {[%emt 0:00:02]} c5 {[%emt 0:00:01]} 8. dxc5 {[%emt 0:00:04]} Qxd1+ {[%emt 0:00:03]} 9. Nxd1 {[%emt 0:00:02]} Bxc5 {[%emt 0:00:03]} 10. O-O {[%emt 0:00:09][%cal Od1c3]} Nd5 {[%emt 0:00:03] Against Nc3. E06: Closed Catalan: Early deviations.} 11. Ne3 {[%emt 0:00:28]} Bxe3 {[%emt 0:00:05]} 12. Bxe3 {[%emt 0:00:05] [#]} c3 $146 {[%emt 0:00:02] [#]} ({Predecessor:} 12... Nxe3 13. fxe3 c3 14. bxc3 Na6 15. Rab1 Rb8 16. Rf4 f6 17. Nd3 b5 18. c4 Bd7 {½-½ Nisipeanu,L (2656)-Adams,M (2694) EU-chT 22nd Batumi 2019 (9.1)}) 13. b4 $1 {[%emt 0:01:09]} Nd7 {[%emt 0:00:34]} ({Don't take} 13... Nxb4 14. Bc5 Nd5 15. Bxf8 Kxf8 16. Rfc1 $16) (13... b6 14. Rac1) 14. Nd3 {[%emt 0:00:57]} b6 {[%emt 0:01:33]} 15. Bxd5 {[%emt 0:00:29]} exd5 {[%emt 0:00:03]} 16. Rfc1 {[%emt 0:00:02]} Ba6 {[%emt 0:00:40]} 17. Rxc3 {[%emt 0:00:09]} Rfc8 {[%emt 0:00:13] Black is weak on the dark squares} 18. Ra3 {[%emt 0:01:29]} Bc4 {[%emt 0:00:10]} 19. Rd1 {[%emt 0:00:11]} Nf8 {[%emt 0:01:07]} 20. Rd2 {[%emt 0:01:53]} Ne6 {[%emt 0:00:33]} 21. Ne5 {[%emt 0:00:02]} Bb5 {[%emt 0:01:44]} 22. Nf3 {[%emt 0:02:34]} f6 {[%emt 0:00:17]} 23. Kf1 {[%emt 0:00:19]} Bc4 {[%emt 0:00:37]} 24. Nd4 {[%emt 0:00:04]} Nxd4 {[%emt 0:00:05]} 25. Bxd4 {[%emt 0:00:00]} b5 {[%emt 0:00:15]} 26. Ra6 {[%emt 0:00:21]} Rc7 {[%emt 0:00:07]} 27. f3 {[%emt 0:00:04]} Kf7 {[%emt 0:00:06]} 28. Kf2 {[%emt 0:00:05]} Re8 {[%emt 0:00:03]} 29. e3 {[%emt 0:00:21]} ({Don't play} 29. Bxa7 Rce7 30. Bc5 Rxe2+ 31. Rxe2 Rxe2+ 32. Kg1 Rxa2 33. Rxa2 Bxa2 $11) 29... Re6 {[%emt 0:00:04] The position is equal.} 30. Ra3 {[%emt 0:00:52]} a6 {[%emt 0:00:10]} 31. g4 {[%emt 0:00:01]} Rc8 {[%emt 0:00:12]} 32. Bc5 {[%emt 0:00:35]} h5 {[%emt 0:00:21]} 33. gxh5 {[%emt 0:00:09]} Rh8 {[%emt 0:00:03]} 34. h4 {[%emt 0:00:02]} Rxh5 {[%emt 0:00:04]} 35. Rd4 {[%emt 0:00:00]} g5 {[%emt 0:00:18]} 36. Kg3 {[%emt 0:00:04]} Rxh4 {[%emt 0:00:15]} 37. Rxh4 {[%emt 0:00:01]} gxh4+ {[%emt 0:00:01]} 38. Kxh4 $11 {[%emt 0:00:00][%mdl 4096] Endgame KRB-KRB} Kg6 {[%emt 0:00:10]} 39. Kg4 {[%emt 0:00:03]} Rc6 {[%emt 0:00:08]} 40. Kf4 {[%emt 0:00:03]} Re6 {[%emt 0:00:07]} 41. Bd4 {[%emt 0:00:02]} Rc6 {[%emt 0:00:43]} 42. Rc3 {[%emt 0:00:03]} Rc8 {[%emt 0:00:03]} 43. Ra3 {[%emt 0:00:16]} Rc6 {[%emt 0:00:04]} 44. Bc5 {[%emt 0:00:14]} Re6 {[%emt 0:00:05]} 45. Ra5 {[%emt 0:00:10]} Rc6 {[%emt 0:00:13]} 46. a4 {[%emt 0:00:03]} bxa4 {[%emt 0:00:03]} 47. Rxa4 {[%emt 0:00:01]} Rc8 {[%emt 0:00:02]} 48. Ra5 {[%emt 0:00:15]} Rh8 {[%emt 0:00:18]} 49. Bd4 {[%emt 0:00:01]} Bb5 {[%emt 0:00:01]} 50. Ra1 {[%emt 0:00:13]} Rh5 {[%emt 0:00:31]} 51. Rg1+ {[%emt 0:00:12]} Rg5 {[%emt 0:00:14]} 52. Rxg5+ {[%emt 0:00:30]} fxg5+ {[%emt 0:00:02] Not much happened in this game.   Weighted Error Value: White=0.03 (flawless) /Black=0.03 (flawless)} 1/2-1/2

[Event "ChessKid Cup Div-III 2023"]
[Site "Online"]
[Date "2023.05.23"]
[Round "3.1"]
[White "Sevian, Samuel"]
[Black "Pichot, Alan"]
[Result "1/2-1/2"]
[ECO "A06"]
[WhiteElo "2684"]
[BlackElo "2638"]
[Annotator "TA"]
[PlyCount "33"]
[EventDate "2023.05.21"]
[EventType "k.o."]
[EventCountry "NET"]
[SourceTitle "playchess.com"]
[Source "ChessBase"]
[SourceQuality "1"]
[TimeControl "900+3"]

{[%evp 9,33,-3,2,5,8,0,0,0,0,0,0,-2,0,0,0,-5,0,0,-5,-8,-4,-18,0,0,0,0]} 1. b3 {[%emt 0:00:06]} d5 {[%emt 0:00:18]} 2. Bb2 {[%emt 0:00:08]} Nf6 {[%emt 0:00:05]} 3. e3 {[%emt 0:00:11]} Bf5 {[%emt 0:00:06]} 4. Nf3 {[%emt 0:00:30]} h6 {[%emt 0:00:04]} 5. Be2 {[%emt 0:00:01]} e6 {[%emt 0:00:05] The position is equal.} 6. c4 {[%emt 0:00:01] A06: Réti Opening: 1 Nf3 d5.} Be7 {[%emt 0:00:05]} 7. O-O {[%emt 0:00:03]} O-O {[%emt 0:00:02]} 8. Nc3 {[%emt 0:00:01]} c6 {[%emt 0:00:30]} 9. h3 {[%emt 0:00:06]} Nbd7 {[%emt 0:00:04]} 10. Rc1 {[%emt 0:00:02] [#]} Nc5 $146 {[%emt 0:00:10]} ({Predecessor:} 10... Bh7 11. d4 a6 12. Bd3 Bxd3 13. Qxd3 Re8 14. Rfd1 Nf8 15. Ne5 N6d7 16. f4 Nxe5 17. fxe5 {0-1 Remizov,Y (2396)-Bjelobrk,I (2405) Titled Tuesday intern op 17th Jan Late blitz 2023 (7)}) 11. d4 {[%emt 0:00:04]} Nce4 {[%emt 0:00:03]} 12. Nxe4 {[%emt 0:00:01]} Nxe4 {[%emt 0:00:05]} 13. Nd2 {[%emt 0:00:01]} Bd6 {[%emt 0:00:09]} 14. Nxe4 {[%emt 0:00:04]} Bxe4 {[%emt 0:00:03]} 15. Bd3 {[%emt 0:00:00]} Qh4 {[%emt 0:00:46]} 16. Bxe4 {[%emt 0:00:02]} Qxe4 {[%emt 0:00:03]} 17. Qc2 {[%emt 0:00:02] An uneventful encounter.   Weighted Error Value: White=0.03 (flawless) /Black=0.03 (flawless)} 1/2-1/2

[Event "ChessKid Cup Div-III 2023"]
[Site "Online"]
[Date "2023.05.23"]
[Round "3.1"]
[White "Antipov, Mikhail Al."]
[Black "Bernadskiy, Vitaliy"]
[Result "0-1"]
[ECO "C07"]
[WhiteElo "2588"]
[BlackElo "2592"]
[Annotator "TA"]
[PlyCount "52"]
[EventDate "2023.05.21"]
[EventType "k.o."]
[EventCountry "NET"]
[SourceTitle "playchess.com"]
[Source "ChessBase"]
[SourceQuality "1"]
[TimeControl "900+3"]

{[%evp 10,52,22,13,18,15,24,19,18,11,15,0,8,2,2,24,55,56,63,31,56,54,40,-19,-20,-46,-60,-131,-105,-282,-297,-343,-337,-461,-464,-450,-395,-657,-597,-685,-668,-767,-766,-729,-637]} 1. e4 {[%emt 0:00:04]} e6 {[%emt 0:00:11]} 2. d4 {[%emt 0:00:01]} d5 {[%emt 0:00:00]} 3. Nd2 {[%emt 0:00:02]} c5 {[%emt 0:00:02]} 4. Ngf3 {[%emt 0:00:01]} cxd4 {[%emt 0:00:01]} 5. exd5 {[%emt 0:00:00]} Qxd5 {[%emt 0:00:06]} 6. Bc4 {[%emt 0:00:02]} Qd7 {[%emt 0:00:02] C07: French Tarrasch: 3...c5, 4 Ngf3 and 4 exd5 Qxd5.} 7. O-O {[%emt 0:00:04][%mdl 1024] White has compensation.} Nc6 {[%emt 0:00:29]} 8. Nb3 {[%emt 0:00:02][%cal Rb3d4]} a6 {[%emt 0:00:09] The position is equal.} 9. a4 {[%emt 0:00:02]} Nf6 {[%emt 0:00:30]} 10. Qe2 {[%emt 0:00:14]} Bd6 {[%emt 0:00:32]} 11. Rd1 {[%emt 0:00:02]} Qc7 {[%emt 0:00:24]} 12. Nbxd4 {[%emt 0:00:03]} Nxd4 {[%emt 0:00:03]} 13. Rxd4 {[%emt 0:00:01]} O-O {[%emt 0:00:34]} 14. b3 {[%emt 0:00:14]} Re8 {[%emt 0:00:12] [#]} 15. Bb2 $146 {[%emt 0:01:20]} ({Predecessor:} 15. Rh4 Bd7 16. Bb2 Be7 17. Ne5 Rad8 18. Bd3 h6 19. Ng4 Nxg4 20. Rxg4 Bf8 21. Bf6 Bc6 22. Rxg7+ {1-0 Efroimski,M (2386)-Flom,G (2477) ISR-chT Israel 2021 (6.4)}) 15... e5 {[%emt 0:00:05][%cal Be6e5,Be5e4][%mdl 32]} 16. Rh4 {[%emt 0:00:03]} ({White should try} 16. Rxd6 $14 Qxd6 17. Ng5) 16... Bf5 $11 {[%emt 0:00:03]} 17. Rd1 {[%emt 0:00:45][%cal Og2g4]} Rad8 {[%emt 0:00:06]} 18. Ng5 {[%emt 0:02:23]} (18. Kf1 $15) 18... Bg6 $1 $17 {[%emt 0:00:10]} 19. Bd3 $2 {[%emt 0:00:04] [#] Now White is beyond hope.} (19. g3 $17 {was necessary.}) 19... e4 $1 $19 {[%emt 0:00:31][%mdl 512]} 20. Bc4 {[%emt 0:00:12] [#]} Be5 {[%emt 0:00:51]} 21. Bc1 {[%emt 0:00:26]} Rxd1+ {[%emt 0:00:09]} ({Don't go for} 21... h6 $2 22. Nh3 $19) 22. Qxd1 {[%emt 0:00:00]} Rd8 {[%emt 0:00:07]} ({But not} 22... h6 $2 23. Nh3 $19) 23. Qe1 {[%emt 0:00:25] [#]} (23. Qe2 Qd7 24. Be3 Qd1+ 25. Qxd1 Rxd1+ 26. Bf1) 23... b5 $1 {[%emt 0:00:07][%mdl 512] Black is clearly winning.} 24. axb5 {[%emt 0:00:14]} (24. Be2 Qxc2) 24... axb5 {[%emt 0:00:00]} 25. Bxb5 {[%emt 0:00:00]} Qxc2 {[%emt 0:00:02] Strongly threatening ...Rd1.} 26. Be2 {[%emt 0:00:01] Wards off Rd1} Ra8 {[%emt 0:00:09] Weighted Error Value: White=0.69/Black=0.03 (flawless)} 0-1

[Event "ChessKid Cup Div-III 2023"]
[Site "Online"]
[Date "2023.05.23"]
[Round "3.2"]
[White "Sevian, Samuel"]
[Black "Pichot, Alan"]
[Result "0-1"]
[ECO "A14"]
[WhiteElo "2684"]
[BlackElo "2638"]
[Annotator "TA"]
[PlyCount "98"]
[EventDate "2023.05.21"]
[EventType "k.o."]
[EventCountry "NET"]
[SourceTitle "playchess.com"]
[Source "ChessBase"]
[SourceQuality "1"]
[TimeControl "900+3"]

{[%evp 12,98,0,2,2,7,4,-33,-25,-28,-25,-30,-16,-20,0,-57,-56,-52,-51,-54,-44,-54,-54,-68,-70,-65,-79,-77,-64,-101,-76,-107,-72,-93,-28,-168,-162,-167,-163,-173,-52,-49,-50,-40,-65,-63,-33,-91,-72,-113,-100,-115,-110,-112,-27,-19,0,-104,0,-312,-102,-133,0,0,0,-297,-303,-296,-288,-297,-283,-367,-337,-354,-345,-525,-525,-513,-515,-495,-479,-440,-252,-220,-180,-192,-201,-957,-832]} 1. c4 {[%emt 0:00:07]} e6 {[%emt 0:05:10]} 2. Nf3 {[%emt 0:00:11]} d5 {[%emt 0:00:05]} 3. g3 {[%emt 0:00:03]} Nf6 {[%emt 0:00:05]} 4. Bg2 {[%emt 0:00:07]} Be7 {[%emt 0:00:06]} 5. O-O {[%emt 0:00:14]} O-O {[%emt 0:00:06]} 6. b3 {[%emt 0:00:06]} d4 {[%emt 0:00:19]} 7. e3 {[%emt 0:00:06]} c5 {[%emt 0:00:04] A14: English Opening: 1...e6 with b3 by White.} 8. Ne5 {[%emt 0:00:04] Prevents Nc6} Nfd7 {[%emt 0:00:07]} 9. Nd3 {[%emt 0:00:05]} Nc6 {[%emt 0:00:08] Black is slightly better.} 10. f4 {[%emt 0:00:05]} e5 {[%emt 0:00:11] [#]} 11. Bb2 $146 {[%emt 0:00:13]} ({Predecessor:} 11. f5 a5 12. Bxc6 bxc6 13. e4 a4 14. Na3 Qc7 15. Nc2 axb3 16. axb3 Rxa1 17. Nxa1 {½-½ Yakubboev,N (2630)-Yu,Y (2729) Airthings Masters Div 2 L rapid 2023 (6.2)}) 11... Bd6 {[%emt 0:00:09][%cal Be7d6,Bd6c7,Bc7a5][%mdl 32]} 12. Na3 {[%emt 0:00:12]} Re8 {[%emt 0:00:16]} 13. e4 {[%emt 0:00:14]} ({White should play} 13. Nb5 $11 Bf8 14. fxe5) 13... a6 $15 {[%emt 0:00:13][%cal Of7f5]} 14. f5 {[%emt 0:00:16]} Rb8 {[%emt 0:00:06]} 15. Nf2 {[%emt 0:00:04]} b5 {[%emt 0:00:14]} 16. d3 {[%emt 0:00:04]} Bc7 {[%emt 0:00:19]} 17. h4 {[%emt 0:00:45]} Ba5 {[%emt 0:00:05]} 18. Nb1 {[%emt 0:00:03]} bxc4 {[%emt 0:01:23]} 19. dxc4 {[%emt 0:00:06]} Bb7 {[%emt 0:00:04]} 20. Qc1 {[%emt 0:00:24]} Nf6 {[%emt 0:00:17]} 21. Rd1 {[%emt 0:00:38][%cal Ob1c3]} Qc7 {[%emt 0:00:17]} 22. Nd2 {[%emt 0:00:05] [#]} d3 {[%emt 0:00:08]} 23. Nxd3 {[%emt 0:00:37]} (23. Kh2 $11 {and White has nothing to worry.}) 23... Nd4 $19 {[%emt 0:00:04]} 24. Re1 {[%emt 0:00:04] [#] Inhibits Ne2+.} Rbd8 $1 {[%emt 0:00:04][%cal Od4f5]} 25. Bc3 {[%emt 0:00:03] [#]} Ne2+ $1 {[%emt 0:00:12][%mdl 512]} 26. Rxe2 $15 {[%emt 0:00:06]} Rxd3 {[%emt 0:00:03]} 27. Bxa5 {[%emt 0:00:07]} Qxa5 {[%emt 0:00:03]} 28. Nf1 {[%emt 0:00:04]} Red8 {[%emt 0:00:09][%mdl 1024] Black has compensation.} (28... Qd8 $5 {[%cal Rd8d4]} 29. Kh2 Qd4 $15) 29. Qb2 {[%emt 0:00:30]} (29. Qe1 $15 Qc7 30. Re3) 29... R8d4 $17 {[%emt 0:00:09][%cal Rb7e4]} 30. Rae1 {[%emt 0:00:08]} h5 {[%emt 0:00:10]} 31. Qc1 {[%emt 0:00:37]} Bc6 {[%emt 0:00:13] Black has more active pieces.} 32. Qg5 {[%emt 0:00:36][%cal Og3g4]} Qc3 {[%emt 0:00:13]} (32... Kh7 $17) 33. Rc1 $11 {[%emt 0:00:31]} Qa5 {[%emt 0:00:06]} (33... Qb4 $11) 34. Rce1 $17 {[%emt 0:00:30][%cal Og3g4]} Qc3 {[%emt 0:00:05]} (34... Kh7 $17) 35. Kh1 $2 {[%emt 0:01:39][%mdl 8192]} (35. Rc1 $11 {and White is okay.} Qa5 36. g4 (36. Rce1 Qc3 $15)) 35... Kh8 $2 {[%emt 0:00:05]} (35... Rd1 $19 {is more deadly.} 36. Rxd1 Rxd1) 36. Kh2 {[%emt 0:00:15]} Ng4+ {[%emt 0:00:10]} ({Black should try} 36... a5 $17 37. Qc1 a4 38. Qxc3 Rxc3 39. bxa4 Rdxc4) 37. Kh3 $11 {[%emt 0:00:05]} Nf6 {[%emt 0:00:22]} 38. Rc1 $2 {[%emt 0:00:24][%mdl 8192] [#]} (38. Kh2 $11) 38... Nh7 $1 $19 {[%emt 0:00:27]} 39. Rxc3 {[%emt 0:01:06]} Nxg5+ {[%emt 0:00:04]} 40. hxg5 {[%emt 0:00:04]} Rxc3 {[%emt 0:00:04]} 41. g6 {[%emt 0:00:03]} fxg6 {[%emt 0:00:13]} 42. fxg6 {[%emt 0:00:03]} Rd6 {[%emt 0:00:04]} 43. Nh2 {[%emt 0:00:12]} (43. Ne3 {was called for.}) 43... Bd7+ {[%emt 0:00:12]} 44. Kh4 {[%emt 0:00:04]} Rxg6 {[%emt 0:00:04]} 45. Bf3 {[%emt 0:00:03]} Rd3 {[%emt 0:00:31] Wards off Rd2. aiming for ...Kh7.} 46. Rg2 {[%emt 0:00:32]} Kh7 {[%emt 0:00:18]} (46... Rh6 $142 {White must now prevent ...Kh7.} 47. Be2 Rd4) 47. Bxh5 {[%emt 0:00:06]} Rh6 {[%emt 0:00:05] Strongly threatening ...g6.} 48. Kg5 {[%emt 0:00:03]} Rdd6 {[%emt 0:00:18]} 49. Ng4 $2 {[%emt 0:01:07] [#]} (49. Rb2) 49... Rdg6+ $1 {[%emt 0:00:16][%mdl 576] Skewer.   Weighted Error Value: White=0.56/Black=0.34} 0-1